[Event "FIDE Online Semi Final 2020"]
[Site "Online"]
[Date "2020.08.30"]
[Round "2.2"]
[White "So, Wesley"]
[Black "Grischuk, Alexander"]
[Result "1-0"]
[ECO "C54"]
[WhiteElo "2777"]
[BlackElo "2696"]
[Annotator "ChessBase"]
[PlyCount "101"]
[EventDate "2020.08.28"]
[EventType "k.o."]
[SourceTitle "playchess.com"]
[Source "ChessBase"]
[SourceQuality "1"]
[TimeControl "900+5"]

1. e4 {[%emt 0:00:23]} e5 {[%emt 0:00:04]} 2. Nf3 {[%emt 0:00:03]} Nc6 {[%emt 0:00:02]} 3. Bc4 {[%emt 0:00:00]} Bc5 {[%emt 0:00:04]} 4. c3 {[%emt 0:00:10]} Nf6 {[%emt 0:00:01]} 5. d3 {[%emt 0:00:03]} d6 {[%emt 0:00:04]} 6. O-O {[%emt 0:00:02]} O-O {[%emt 0:00:03]} 7. Re1 {[%emt 0:00:05]} a5 {[%emt 0:00:11]} 8. h3 {[%emt 0:00:12]} Ba7 {[%emt 0:00:30]} 9. Bb3 {[%emt 0:01:06]} h6 {[%emt 0:01:56]} 10. Nbd2 {[%emt 0:00:44]} Be6 {[%emt 0:00:33]} 11. Bc2 {[%emt 0:00:15]} Re8 {[%emt 0:01:16]} 12. Nf1 {[%emt 0:00:36]} d5 {[%emt 0:00:15]} 13. exd5 {[%emt 0:00:05]} Bxd5 {[%emt 0:00:47]} 14. Ng3 {[%emt 0:00:20]} Qd6 {[%emt 0:00:18]} 15. Nf5 {[%emt 0:02:33]} Qd7 {[%emt 0:02:13]} 16. N3h4 {[%emt 0:00:20]} Ne7 {[%emt 0:00:15]} 17. Rxe5 {[%emt 0:01:57]} Nxf5 {[%emt 0:00:05]} 18. Rxf5 {[%emt 0:00:00]} Qe6 {[%emt 0:02:15]} 19. d4 {[%emt 0:03:08]} Qe1+ {[%emt 0:00:40]} 20. Kh2 {[%emt 0:00:06]} c5 {[%emt 0:02:55]} 21. Bxh6 {[%emt 0:01:21]} Bb8+ {[%emt 0:00:04]} 22. Bf4 {[%emt 0:00:23]} Qxd1 {[%emt 0:00:04]} 23. Rxd1 {[%emt 0:00:06]} Be6 {[%emt 0:00:05]} 24. Rxf6 {[%emt 0:00:58]} gxf6 {[%emt 0:00:01]} 25. Bxb8 {[%emt 0:00:02]} Raxb8 {[%emt 0:00:02]} 26. d5 {[%emt 0:00:07]} Bd7 {[%emt 0:00:05]} 27. Rd2 {[%emt 0:00:03]} b5 {[%emt 0:01:50]} 28. Bf5 {[%emt 0:00:15]} Rbd8 {[%emt 0:00:01]} 29. Bxd7 {[%emt 0:00:08]} Rxd7 {[%emt 0:00:00]} 30. Nf5 {[%emt 0:00:01]} Kh7 {[%emt 0:00:21]} 31. g4 {[%emt 0:00:04]} Re4 {[%emt 0:00:15]} 32. Kg3 {[%emt 0:00:40]} b4 {[%emt 0:00:03]} 33. d6 {[%emt 0:00:01]} bxc3 {[%emt 0:00:08]} 34. bxc3 {[%emt 0:00:00]} Rc4 {[%emt 0:00:00]} 35. Rd3 {[%emt 0:00:00]} Ra4 {[%emt 0:00:02]} 36. Re3 {[%emt 0:00:04]} Rd8 {[%emt 0:00:20]} 37. Re7 {[%emt 0:00:17]} Rc4 {[%emt 0:00:09]} 38. Rxf7+ {[%emt 0:00:03]} Kg8 {[%emt 0:00:03]} 39. Rxf6 {[%emt 0:00:32]} Rxc3+ {[%emt 0:00:02]} 40. Kh4 {[%emt 0:00:00]} c4 {[%emt 0:00:04]} 41. g5 {[%emt 0:00:01]} Rd3 {[%emt 0:00:11]} 42. g6 {[%emt 0:00:39]} Rf8 {[%emt 0:00:04]} 43. Kg5 {[%emt 0:00:02]} c3 {[%emt 0:00:05]} 44. Ne7+ {[%emt 0:00:10]} Kg7 {[%emt 0:00:01]} 45. Nf5+ {[%emt 0:00:01]} Kg8 {[%emt 0:00:00]} 46. Rxf8+ {[%emt 0:00:01]} Kxf8 {[%emt 0:00:01]} 47. Kf6 {[%emt 0:00:00]} Rxd6+ {[%emt 0:00:19]} 48. Nxd6 {[%emt 0:00:00]} c2 {[%emt 0:00:01]} 49. g7+ {[%emt 0:00:02]} Kg8 {[%emt 0:00:00]} 50. Nf5 {[%emt 0:00:00]} c1=Q {[%emt 0:00:04]} 51. Ne7+ {[%emt 0:00:00]} 1-0

[Event "FIDE Online Semi Final 2020"]
[Site "Online"]
[Date "2020.08.30"]
[Round "2.2"]
[White "Xiong, Jeffery"]
[Black "Esipenko, Andrey"]
[Result "1-0"]
[ECO "E32"]
[WhiteElo "2770"]
[BlackElo "2789"]
[Annotator "ChessBase"]
[PlyCount "97"]
[EventDate "2020.08.28"]
[EventType "k.o."]
[SourceTitle "playchess.com"]
[Source "ChessBase"]
[SourceQuality "1"]
[TimeControl "900+5"]

1. d4 {[%emt 0:00:01]} Nf6 {[%emt 0:00:03]} 2. c4 {[%emt 0:00:01]} e6 {[%emt 0:00:02]} 3. Nc3 {[%emt 0:00:00]} Bb4 {[%emt 0:00:03]} 4. Qc2 {[%emt 0:00:01]} O-O {[%emt 0:00:08]} 5. e4 {[%emt 0:00:02]} d5 {[%emt 0:00:21]} 6. e5 {[%emt 0:00:01]} Ne4 {[%emt 0:00:02]} 7. Bd3 {[%emt 0:00:01]} c5 {[%emt 0:00:08]} 8. Nf3 {[%emt 0:00:01]} cxd4 {[%emt 0:00:07]} 9. Nxd4 {[%emt 0:00:00]} Nd7 {[%emt 0:00:01]} 10. Bf4 {[%emt 0:00:01]} Qh4 {[%emt 0:00:01]} 11. g3 {[%emt 0:00:02]} Qh5 {[%emt 0:00:00]} 12. h4 {[%emt 0:00:01]} Nxe5 {[%emt 0:02:17]} 13. Be2 {[%emt 0:00:03]} Ng4 {[%emt 0:00:07]} 14. Bxg4 {[%emt 0:00:01]} Qxg4 {[%emt 0:00:01]} 15. f3 {[%emt 0:00:01]} Qh5 {[%emt 0:00:28]} 16. g4 {[%emt 0:00:01]} Qg6 {[%emt 0:00:07]} 17. fxe4 {[%emt 0:00:00]} e5 {[%emt 0:00:20]} 18. O-O-O {[%emt 0:00:05]} Bxc3 {[%emt 0:05:19]} 19. Nf5 {[%emt 0:00:02]} Bxf5 {[%emt 0:01:00]} 20. gxf5 {[%emt 0:00:00]} Qa6 {[%emt 0:00:01]} 21. Qxc3 {[%emt 0:07:43]} d4 {[%emt 0:01:13]} 22. Qb3 {[%emt 0:03:57]} exf4 {[%emt 0:00:04]} 23. Rxd4 {[%emt 0:00:00]} Rad8 {[%emt 0:00:14]} 24. Qd3 {[%emt 0:03:18]} Rxd4 {[%emt 0:01:06]} 25. Qxd4 {[%emt 0:00:00]} Rc8 {[%emt 0:00:01]} 26. b3 {[%emt 0:00:22]} Qxa2 {[%emt 0:00:57]} 27. Rd1 {[%emt 0:00:42]} g6 {[%emt 0:01:11]} 28. f6 {[%emt 0:00:02]} h5 {[%emt 0:00:21]} 29. Rd3 {[%emt 0:00:17]} Qg2 {[%emt 0:00:46]} 30. Qd7 {[%emt 0:00:10]} Rf8 {[%emt 0:00:09]} 31. Qe7 {[%emt 0:00:07]} Qg1+ {[%emt 0:00:35]} 32. Kc2 {[%emt 0:00:06]} Qb6 {[%emt 0:00:01]} 33. Rd6 {[%emt 0:00:25]} Qa5 {[%emt 0:00:08]} 34. Rd5 {[%emt 0:00:00]} Qb6 {[%emt 0:00:09]} 35. Rd6 {[%emt 0:00:06]} Qa5 {[%emt 0:00:01]} 36. Rd5 {[%emt 0:00:00]} Qb6 {[%emt 0:00:14]} 37. Rg5 {[%emt 0:00:15]} Qf2+ {[%emt 0:00:09]} 38. Kb1 {[%emt 0:00:04]} Qe1+ {[%emt 0:00:05]} 39. Ka2 {[%emt 0:00:01]} Qd2+ {[%emt 0:00:04]} 40. Ka3 {[%emt 0:00:00]} Qc1+ {[%emt 0:00:03]} 41. Ka4 {[%emt 0:00:14]} Qa1+ {[%emt 0:00:04]} 42. Kb4 {[%emt 0:00:01]} Qe1+ {[%emt 0:00:12]} 43. Kb5 {[%emt 0:00:04]} a6+ {[%emt 0:00:02]} 44. Kb6 {[%emt 0:00:01]} Qe3+ {[%emt 0:00:09]} 45. Kc7 {[%emt 0:00:01]} Qc3 {[%emt 0:00:06]} 46. Rxg6+ {[%emt 0:00:02]} Kh7 {[%emt 0:00:01]} 47. Rg7+ {[%emt 0:00:18]} Kh6 {[%emt 0:00:01]} 48. Qxf8 {[%emt 0:00:00]} Qe5+ {[%emt 0:00:05]} 49. Qd6 {[%emt 0:00:02]} 1-0

[Event "FIDE Online Semi Final 2020"]
[Site "Online"]
[Date "2020.08.30"]
[Round "2.2"]
[White "Kosteniuk, Alexandra"]
[Black "Zatonskih, Anna"]
[Result "1-0"]
[ECO "C42"]
[WhiteElo "2507"]
[BlackElo "2351"]
[Annotator "ChessBase"]
[PlyCount "107"]
[EventDate "2020.08.28"]
[EventType "k.o."]
[SourceTitle "playchess.com"]
[Source "ChessBase"]
[SourceQuality "1"]
[TimeControl "900+5"]

1. e4 {[%emt 0:00:01]} e5 {[%emt 0:00:02]} 2. Nf3 {[%emt 0:00:03]} Nf6 {[%emt 0:00:02]} 3. Nxe5 {[%emt 0:00:01]} d6 {[%emt 0:00:03]} 4. Nf3 {[%emt 0:00:01]} Nxe4 {[%emt 0:00:02]} 5. Nc3 {[%emt 0:00:01]} Nf6 {[%emt 0:00:15]} 6. d4 {[%emt 0:00:08]} Be7 {[%emt 0:00:02]} 7. Bd3 {[%emt 0:00:14]} Bg4 {[%emt 0:00:51]} 8. O-O {[%emt 0:00:03]} O-O {[%emt 0:00:05]} 9. Re1 {[%emt 0:00:05]} Nbd7 {[%emt 0:01:13]} 10. h3 {[%emt 0:00:29]} Bh5 {[%emt 0:00:03]} 11. g4 {[%emt 0:01:08]} Bg6 {[%emt 0:00:15]} 12. g5 {[%emt 0:00:52]} Nh5 {[%emt 0:00:13]} 13. Nd5 {[%emt 0:01:31]} Re8 {[%emt 0:00:07]} 14. Nh4 {[%emt 0:01:07]} c6 {[%emt 0:02:15]} 15. Nxe7+ {[%emt 0:00:31]} Rxe7 {[%emt 0:00:04]} 16. Nf5 {[%emt 0:03:59]} Rxe1+ {[%emt 0:02:01]} 17. Qxe1 {[%emt 0:00:02]} Bxf5 {[%emt 0:00:06]} 18. Bxf5 {[%emt 0:00:01]} g6 {[%emt 0:00:02]} 19. Bg4 {[%emt 0:00:09]} Ng7 {[%emt 0:01:16]} 20. Bf4 {[%emt 0:00:43]} Nb6 {[%emt 0:00:53]} 21. Qa5 {[%emt 0:00:34]} Nd5 {[%emt 0:00:26]} 22. Qxd8+ {[%emt 0:00:03]} Rxd8 {[%emt 0:00:02]} 23. Bd2 {[%emt 0:00:01]} Ne6 {[%emt 0:01:56]} 24. c3 {[%emt 0:00:45]} Ndf4 {[%emt 0:00:39]} 25. b3 {[%emt 0:00:37]} h5 {[%emt 0:00:50]} 26. gxh6 {[%emt 0:01:10]} f5 {[%emt 0:00:02]} 27. Bf3 {[%emt 0:00:01]} Nxh3+ {[%emt 0:00:02]} 28. Kg2 {[%emt 0:01:00]} Nhf4+ {[%emt 0:00:30]} 29. Kg3 {[%emt 0:00:10]} g5 {[%emt 0:00:02]} 30. Re1 {[%emt 0:00:18]} Kf7 {[%emt 0:00:11]} 31. c4 {[%emt 0:00:01]} Nxd4 {[%emt 0:01:32]} 32. Bxf4 {[%emt 0:00:06]} gxf4+ {[%emt 0:00:01]} 33. Kxf4 {[%emt 0:00:01]} Kf6 {[%emt 0:00:36]} 34. Rh1 {[%emt 0:00:40]} Ne6+ {[%emt 0:00:08]} 35. Ke3 {[%emt 0:00:07]} Rh8 {[%emt 0:00:03]} 36. Be2 {[%emt 0:00:23]} d5 {[%emt 0:00:25]} 37. cxd5 {[%emt 0:00:05]} cxd5 {[%emt 0:00:00]} 38. Bd3 {[%emt 0:00:06]} d4+ {[%emt 0:00:11]} 39. Kd2 {[%emt 0:00:04]} Ng5 {[%emt 0:00:25]} 40. Kc2 {[%emt 0:00:23]} Nf7 {[%emt 0:00:12]} 41. Rh5 {[%emt 0:00:06]} Nxh6 {[%emt 0:00:07]} 42. Bxf5 {[%emt 0:00:14]} b6 {[%emt 0:00:03]} 43. Kd2 {[%emt 0:00:08]} Nf7 {[%emt 0:00:08]} 44. Rxh8 {[%emt 0:00:05]} Nxh8 {[%emt 0:00:00]} 45. Bg4 {[%emt 0:00:06]} Ke5 {[%emt 0:00:04]} 46. Bh5 {[%emt 0:00:03]} Kf5 {[%emt 0:00:15]} 47. Kd3 {[%emt 0:00:02]} Ke5 {[%emt 0:00:01]} 48. b4 {[%emt 0:00:07]} a5 {[%emt 0:00:05]} 49. a3 {[%emt 0:00:07]} Kd5 {[%emt 0:00:05]} 50. f4 {[%emt 0:00:03]} axb4 {[%emt 0:00:09]} 51. axb4 {[%emt 0:00:00]} Ke6 {[%emt 0:00:06]} 52. Kxd4 {[%emt 0:00:05]} Kf5 {[%emt 0:00:01]} 53. Ke3 {[%emt 0:00:01]} Kf6 {[%emt 0:00:07]} 54. b5 {[%emt 0:00:11]} 1-0

[Event "FIDE Online Semi Final 2020"]
[Site "Online"]
[Date "2020.08.30"]
[Round "2.2"]
[White "Yip, Carissa"]
[Black "Goryachkina, Aleksandra"]
[Result "1-0"]
[ECO "B15"]
[WhiteElo "2328"]
[BlackElo "2504"]
[Annotator "ChessBase"]
[PlyCount "95"]
[EventDate "2020.08.28"]
[EventType "k.o."]
[SourceTitle "playchess.com"]
[Source "ChessBase"]
[SourceQuality "1"]
[TimeControl "900+5"]

1. e4 {[%emt 0:00:01]} c6 {[%emt 0:00:08]} 2. d4 {[%emt 0:00:03]} d5 {[%emt 0:00:08]} 3. Nc3 {[%emt 0:00:01]} dxe4 {[%emt 0:00:02]} 4. Nxe4 {[%emt 0:00:02]} Nf6 {[%emt 0:00:01]} 5. Nxf6+ {[%emt 0:00:02]} exf6 {[%emt 0:00:02]} 6. c3 {[%emt 0:00:02]} Bd6 {[%emt 0:00:01]} 7. Bd3 {[%emt 0:00:01]} O-O {[%emt 0:00:03]} 8. Qc2 {[%emt 0:00:02]} Re8+ {[%emt 0:00:07]} 9. Ne2 {[%emt 0:00:00]} h5 {[%emt 0:00:03]} 10. Be3 {[%emt 0:00:05]} Nd7 {[%emt 0:00:03]} 11. O-O-O {[%emt 0:00:04]} Nf8 {[%emt 0:00:05]} 12. h3 {[%emt 0:00:37]} Be6 {[%emt 0:01:13]} 13. c4 {[%emt 0:00:03]} Rc8 {[%emt 0:00:42]} 14. Nc3 {[%emt 0:00:02]} Bb4 {[%emt 0:01:53]} 15. Ne4 {[%emt 0:01:11]} Be7 {[%emt 0:01:18]} 16. g4 {[%emt 0:02:05]} b5 {[%emt 0:02:08]} 17. gxh5 {[%emt 0:02:03]} bxc4 {[%emt 0:00:05]} 18. Be2 {[%emt 0:00:43]} Qa5 {[%emt 0:01:04]} 19. Bxc4 {[%emt 0:01:37]} Bxc4 {[%emt 0:00:22]} 20. Qxc4 {[%emt 0:00:00]} Qxh5 {[%emt 0:00:09]} 21. Qc2 {[%emt 0:00:58]} Qa5 {[%emt 0:02:09]} 22. Kb1 {[%emt 0:00:14]} Ne6 {[%emt 0:01:16]} 23. Rhg1 {[%emt 0:01:55]} f5 {[%emt 0:00:43]} 24. Ng3 {[%emt 0:02:12]} f4 {[%emt 0:00:11]} 25. Bd2 {[%emt 0:00:01]} Qd5 {[%emt 0:00:25]} 26. Nf5 {[%emt 0:00:02]} Bf6 {[%emt 0:01:36]} 27. Nh6+ {[%emt 0:00:17]} Kf8 {[%emt 0:00:20]} 28. Bb4+ {[%emt 0:00:02]} c5 {[%emt 0:00:48]} 29. dxc5 {[%emt 0:00:01]} Qh5 {[%emt 0:00:08]} 30. c6+ {[%emt 0:00:10]} Be7 {[%emt 0:00:03]} 31. Bxe7+ {[%emt 0:00:05]} Rxe7 {[%emt 0:00:00]} 32. Nf5 {[%emt 0:00:20]} Rec7 {[%emt 0:00:02]} 33. Qe4 {[%emt 0:00:53]} Rxc6 {[%emt 0:00:07]} 34. Rd5 {[%emt 0:00:36]} Qh7 {[%emt 0:00:07]} 35. a3 {[%emt 0:00:29]} Rc4 {[%emt 0:00:07]} 36. Qe5 {[%emt 0:00:14]} Kg8 {[%emt 0:00:07]} 37. Ka2 {[%emt 0:00:05]} Kh8 {[%emt 0:00:05]} 38. Nd6 {[%emt 0:00:08]} R4c7 {[%emt 0:00:04]} 39. Nxf7+ {[%emt 0:00:20]} Rxf7 {[%emt 0:00:02]} 40. Qxe6 {[%emt 0:00:01]} Rcf8 {[%emt 0:00:04]} 41. Rgg5 {[%emt 0:00:06]} Kg8 {[%emt 0:00:02]} 42. Rdf5 {[%emt 0:00:08]} Qh4 {[%emt 0:00:08]} 43. Rg4 {[%emt 0:00:13]} Qh7 {[%emt 0:00:09]} 44. Rgxf4 {[%emt 0:00:03]} g6 {[%emt 0:00:04]} 45. Rxf7 {[%emt 0:00:05]} Rxf7 {[%emt 0:00:03]} 46. Qxf7+ {[%emt 0:00:01]} Qxf7+ {[%emt 0:00:01]} 47. Rxf7 {[%emt 0:00:00]} Kxf7 {[%emt 0:00:01]} 48. Kb3 {[%emt 0:00:01]} 1-0

[Event "FIDE Online Semi Final 2020"]
[Site "Online"]
[Date "2020.08.30"]
[Round "2.2"]
[White "Shuvalova, Polina"]
[Black "Wang, Annie"]
[Result "1-0"]
[ECO "B69"]
[WhiteElo "2316"]
[BlackElo "2288"]
[Annotator "ChessBase"]
[PlyCount "89"]
[EventDate "2020.08.28"]
[EventType "k.o."]
[SourceTitle "playchess.com"]
[Source "ChessBase"]
[SourceQuality "1"]
[TimeControl "900+5"]

1. e4 {[%emt 0:00:01]} c5 {[%emt 0:00:01]} 2. Nf3 {[%emt 0:00:01]} d6 {[%emt 0:00:02]} 3. d4 {[%emt 0:00:02]} cxd4 {[%emt 0:00:01]} 4. Nxd4 {[%emt 0:00:00]} Nf6 {[%emt 0:00:03]} 5. Nc3 {[%emt 0:00:01]} Nc6 {[%emt 0:00:01]} 6. Bg5 {[%emt 0:00:03]} e6 {[%emt 0:00:02]} 7. Qd2 {[%emt 0:00:02]} a6 {[%emt 0:00:01]} 8. O-O-O {[%emt 0:00:06]} Bd7 {[%emt 0:00:02]} 9. f4 {[%emt 0:00:02]} Be7 {[%emt 0:00:03]} 10. Nf3 {[%emt 0:00:25]} b5 {[%emt 0:00:04]} 11. Bxf6 {[%emt 0:00:04]} gxf6 {[%emt 0:00:02]} 12. Kb1 {[%emt 0:00:05]} Qb6 {[%emt 0:00:02]} 13. Bd3 {[%emt 0:00:08]} O-O-O {[%emt 0:00:06]} 14. Rhe1 {[%emt 0:00:01]} Rhe8 {[%emt 0:00:34]} 15. f5 {[%emt 0:01:01]} b4 {[%emt 0:00:36]} 16. Ne2 {[%emt 0:01:23]} Ne5 {[%emt 0:01:31]} 17. Nfd4 {[%emt 0:00:47]} Nxd3 {[%emt 0:00:28]} 18. Qxd3 {[%emt 0:00:28]} e5 {[%emt 0:00:34]} 19. Qc4+ {[%emt 0:01:02]} Kb8 {[%emt 0:00:14]} 20. Nb3 {[%emt 0:00:02]} Rf8 {[%emt 0:00:12]} 21. Nec1 {[%emt 0:01:05]} Rc8 {[%emt 0:00:53]} 22. Qd5 {[%emt 0:00:08]} Bc6 {[%emt 0:01:34]} 23. Qa5 {[%emt 0:00:56]} Qxa5 {[%emt 0:01:23]} 24. Nxa5 {[%emt 0:00:02]} Ba8 {[%emt 0:00:02]} 25. b3 {[%emt 0:01:16]} Rg8 {[%emt 0:00:56]} 26. g3 {[%emt 0:02:21]} Rg4 {[%emt 0:01:11]} 27. Nd3 {[%emt 0:00:06]} Bxe4 {[%emt 0:01:28]} 28. h3 {[%emt 0:02:03]} Bxd3 {[%emt 0:00:40]} 29. Rxd3 {[%emt 0:00:01]} Rg5 {[%emt 0:00:12]} 30. g4 {[%emt 0:00:14]} Rc5 {[%emt 0:00:23]} 31. Nc4 {[%emt 0:00:17]} d5 {[%emt 0:00:03]} 32. Nb6 {[%emt 0:00:16]} Rb5 {[%emt 0:01:51]} 33. Nxd5 {[%emt 0:00:03]} Bc5 {[%emt 0:00:55]} 34. Nxf6 {[%emt 0:00:19]} Bd4 {[%emt 0:00:08]} 35. h4 {[%emt 0:01:23]} Rg7 {[%emt 0:00:07]} 36. g5 {[%emt 0:00:01]} Rb7 {[%emt 0:01:04]} 37. Rxd4 {[%emt 0:00:23]} exd4 {[%emt 0:00:03]} 38. Re8+ {[%emt 0:00:01]} Kc7 {[%emt 0:00:21]} 39. Nh5 {[%emt 0:00:08]} Rxg5 {[%emt 0:00:11]} 40. hxg5 {[%emt 0:00:04]} Kd6 {[%emt 0:00:07]} 41. Nf6 {[%emt 0:00:18]} Rb5 {[%emt 0:00:04]} 42. Ra8 {[%emt 0:00:34]} a5 {[%emt 0:00:08]} 43. Ne4+ {[%emt 0:00:20]} Ke5 {[%emt 0:00:06]} 44. Re8+ {[%emt 0:00:02]} Kxf5 {[%emt 0:00:01]} 45. Nd6+ {[%emt 0:00:02]} 1-0